fUSD/lending_fUSD_20250319
["ID","MTS","AMOUNT","RATE_DAILY","PERIOD"]
[356407468,1742412640787,-500.0,0.00029878,2]
[356407469,1742412640797,-500.0,0.00029878,2]
[356407471,1742412640807,-500.0,0.00029878,2]
[356407472,1742412640817,-500.0,0.00029878,2]
[356407473,1742412640826,-500.0,0.00029878,2]
[356407475,1742412640835,-500.0,0.00029878,2]
[356407476,1742412640845,-500.0,0.00029878,2]
[356407478,1742412640855,-1161.8,0.00029878,2]
[356407479,1742412640865,-614.53,0.00029878,2]
[356407480,1742412640874,-500.0,0.00029878,2]
[356407482,1742412640883,-500.0,0.00029878,2]
[356407483,1742412640894,-500.0,0.00029878,2]
[356407484,1742412640903,-514.73,0.00029878,2]
[356407486,1742412640914,-768.35,0.00029878,2]
[356407487,1742412640923,-500.0,0.00029878,2]
[356407489,1742412640933,-500.0,0.00029878,2]
[356407490,1742412640942,-791.94,0.00029878,2]
[356407491,1742412640951,-500.0,0.00029878,2]
[356407493,1742412640961,-500.0,0.00029878,2]
[356407494,1742412640970,-500.0,0.00029878,2]
[356407495,1742412640980,-500.0,0.00029878,2]
[356407497,1742412640990,-519.14,0.00029878,2]
[356407498,1742412641001,-500.0,0.00029878,2]
[356407499,1742412641010,-500.0,0.00029878,2]
[356407501,1742412641021,-523.44022257,0.00029878,2]
[356407517,1742412641422,-508.17977743,0.00029878,2]
[356407518,1742412641432,-500.0,0.00029878,2]
[356407520,1742412641442,-860.4,0.00029878,2]
[356407521,1742412641452,-500.0,0.00029878,2]
[356407522,1742412641462,-263.92022257,0.00029878,2]
[356407524,1742412641478,-555.62977743,0.00029878,2]
[356407525,1742412641494,-601.73,0.00029878,2]
[356407527,1742412641511,-853.21,0.00029878,2]
[356407528,1742412641523,-500.0,0.00029878,2]
[356407530,1742412641534,-782.43,0.00029878,2]
[356407531,1742412641545,-114.84154842,0.00029878,2]
[356407532,1742412641558,-385.15845158,0.00029878,2]
[356407534,1742412641569,-1066.06,0.00029878,2]
[356407535,1742412641579,-500.0,0.00029878,2]
[356407536,1742412641589,-500.0,0.00029878,2]
[356407538,1742412641601,-500.0,0.00029878,2]
[356407539,1742412641612,-500.0,0.00029878,2]
[356407541,1742412641623,-339.43154842,0.00029878,2]
[356407542,1742412641641,-171.94782361,0.00029878,2]
[356407544,1742412641652,-857.04,0.00029878,2]
[356407545,1742412641663,-1119.3,0.00029878,2]
[356407546,1742412641674,-500.0,0.00029878,2]
[356407548,1742412641684,-500.0,0.00029878,2]
[356407549,1742412641696,-500.0,0.00029878,2]
[356407550,1742412641706,-500.0,0.00029878,2]
[356407552,1742412641717,-1170.3,0.00029878,2]
[356407553,1742412641728,-500.0,0.00029878,2]
[356407554,1742412641739,-1092.64,0.00029878,2]
[356407556,1742412641757,-500.0,0.00029878,2]
[356407557,1742412641767,-570.11,0.00029878,2]
[356407559,1742412641777,-500.0,0.00029878,2]
[356407560,1742412641788,-697.34,0.00029878,2]
[356407561,1742412641799,-500.0,0.00029878,2]
[356407563,1742412641810,-500.0,0.00029878,2]
[356407564,1742412641821,-500.0,0.00029878,2]
[356407566,1742412641832,-500.0,0.00029878,2]
[356407567,1742412641842,-500.0,0.00029878,2]
[356407568,1742412641854,-500.0,0.00029878,2]
[356407570,1742412641864,-580.84,0.00029878,2]
[356407571,1742412641875,-1401.15,0.00029878,2]
[356407572,1742412641885,-767.35,0.00029878,2]
[356407574,1742412641895,-500.0,0.00029878,2]
[356407575,1742412641905,-500.0,0.00029878,2]
[356407577,1742412641916,-500.0,0.00029878,2]
[356407578,1742412641926,-500.0,0.00029878,2]
[356407579,1742412641935,-1196.85,0.00029878,2]
[356407581,1742412641945,-500.0,0.00029878,2]
[356407582,1742412641955,-580.75,0.00029878,2]
[356407583,1742412641966,-1047.18,0.00029878,2]
[356407585,1742412641976,-500.0,0.00029878,2]
[356407586,1742412641986,-500.0,0.00029878,2]
[356407588,1742412641996,-1212.34,0.00029878,2]
[356407589,1742412642012,-500.0,0.00029878,2]
[356407590,1742412642022,-500.0,0.00029878,2]
[356407592,1742412642032,-500.0,0.00029878,2]
[356407593,1742412642041,-500.0,0.00029878,2]
[356407594,1742412642051,-513.98146091,0.00029878,2]
[356407596,1742412642061,-500.0,0.00029878,2]
[356407597,1742412642070,-500.0,0.00029878,2]
[356407599,1742412642082,-579.75,0.00029878,2]
[356407600,1742412642092,-875.72,0.00029878,2]
[356407601,1742412642102,-500.0,0.00029878,2]
[356407603,1742412642112,-500.0,0.00029878,2]
[356407604,1742412642122,-500.0,0.00029878,2]
[356407605,1742412642132,-618.51,0.00029878,2]
[356407607,1742412642141,-2231.93,0.00029878,2]
[356407608,1742412642151,-631.7058658,0.00029878,2]
[356407609,1742412642161,-500.0,0.00029878,2]
[356407611,1742412642171,-500.0,0.00029878,2]
[356407612,1742412642181,-500.0,0.00029878,2]
[356407614,1742412642191,-500.0,0.00029878,2]
[356407615,1742412642201,-500.0,0.00029878,2]
[356407616,1742412642211,-500.0,0.00029878,2]
[356407618,1742412642222,-632.49,0.00029878,2]
[356407619,1742412642232,-500.0,0.00029878,2]
[356407621,1742412642242,-500.0,0.00029878,2]
[356407622,1742412642257,-500.0,0.00029878,2]
[356407623,1742412642267,-500.0,0.00029878,2]
[356407625,1742412642277,-1067.94,0.00029878,2]
[356407626,1742412642287,-849.22,0.00029878,2]
[356407627,1742412642298,-500.0,0.00029878,2]
[356407629,1742412642308,-500.0,0.00029878,2]
[356407630,1742412642318,-515.51,0.00029878,2]
[356407632,1742412642328,-960.92,0.00029878,2]
[356407633,1742412642339,-500.0,0.00029878,2]
[356407634,1742412642349,-9.24464968,0.00029878,2]
[356407638,1742412642561,-595.15535032,0.00029878,2]
[356407639,1742412642572,-500.0,0.00029878,2]
[356407641,1742412642582,-500.0,0.00029878,2]
[356407642,1742412642592,-500.0,0.00029878,2]
[356407643,1742412642601,-973.22,0.00029878,2]
[356407645,1742412642611,-518.3647766,0.00029878,2]
[356407648,1742412642621,-1151.35,0.00029878,2]
[356407650,1742412642630,-518.87127575,0.00029878,2]
[356407652,1742412642639,-500.0,0.00029878,2]
[356407653,1742412642649,-500.0,0.00029878,2]
[356407654,1742412642658,-500.0,0.00029878,2]
[356407657,1742412642668,-974.87,0.00029878,2]
[356407658,1742412642678,-1672.52,0.00029878,2]
[356407660,1742412642687,-500.0,0.00029878,2]
[356407662,1742412642697,-500.0,0.00029878,2]
[356407663,1742412642707,-500.0,0.00029878,2]
[356407664,1742412642717,-500.0,0.00029878,2]
[356407666,1742412642727,-500.0,0.00029878,2]
[356407667,1742412642737,-500.0,0.00029878,2]
[356407669,1742412642761,-500.04118994,0.00029878,2]
[356407670,1742412642771,-500.0,0.00029878,2]
[356407673,1742412642782,-43.12904435,0.00029878,2]
[356407680,1742412642936,-463.83262652,0.00029878,2]
[356407702,1742412643377,-858.0,0.00029768,2]
[356407733,1742412644043,-531.2168,0.00029768,2]
[356407735,1742412644053,-14.00898,0.00029878,2]
[356407736,1742412644062,-500.0,0.00029878,2]
[356407737,1742412644071,-500.0,0.00029878,2]
[356407739,1742412644080,-632.61,0.00029878,2]
[356407740,1742412644090,-500.0,0.00029878,2]
[356407741,1742412644099,-500.0,0.00029878,2]
[356407743,1742412644108,-500.0,0.00029878,2]
[356407744,1742412644117,-500.0,0.00029878,2]
[356407746,1742412644126,-121.59839026,0.00029878,2]
[356407747,1742412644138,-378.40160974,0.00029878,2]
[356407748,1742412644148,-664.58,0.00029878,2]
[356407750,1742412644157,-500.0,0.00029878,2]
[356407751,1742412644166,-500.0,0.00029878,2]
[356407753,1742412644176,-655.87,0.00029878,2]
[356407754,1742412644185,-434.38577122,0.00029878,2]
[356407755,1742412644195,-500.0,0.00029878,2]
[356407757,1742412644204,-251.41790415,0.00029878,2]
[356407758,1742412644214,-500.0,0.00029878,2]
[356407759,1742412644223,-500.0,0.00029878,2]
[356407761,1742412644232,-500.0,0.00029878,2]
[356407762,1742412644241,-617.55346311,0.00029878,2]
[356407764,1742412644253,-1588.36,0.00029878,2]
[356407765,1742412644263,-500.0,0.00029878,2]
[356407766,1742412644276,-500.0,0.00029878,2]
[356407768,1742412644286,-500.0,0.00029878,2]
[356407769,1742412644295,-500.0,0.00029878,2]
[356407770,1742412644305,-672.45,0.00029878,2]
[356407772,1742412644314,-500.0,0.00029878,2]
[356407773,1742412644323,-500.0,0.00029878,2]
[356407775,1742412644333,-508.18,0.00029878,2]
[356407776,1742412644343,-500.0,0.00029878,2]
[356407777,1742412644352,-500.0,0.00029878,2]
[356407779,1742412644361,-640.54,0.00029878,2]
[356407780,1742412644371,-741.53,0.00029878,2]
[356407781,1742412644380,-500.0,0.00029878,2]
[356407783,1742412644389,-509.79692256,0.00029878,2]
[356407784,1742412644398,-896.15,0.00029878,2]
[356407786,1742412644407,-500.0,0.00029878,2]
[356407787,1742412644417,-1696.53,0.00029878,2]
[356407788,1742412644427,-500.0,0.00029878,2]
[356407790,1742412644437,-309.419176,0.00029878,2]
[356407791,1742412644450,-500.0,0.00029878,2]
[356407793,1742412644459,-677.73,0.00029878,2]
[356407794,1742412644469,-500.0,0.00029878,2]
[356407795,1742412644479,-500.0,0.00029878,2]
[356407797,1742412644491,-500.0,0.00029878,2]
[356407798,1742412644500,-500.0,0.00029878,2]
[356407799,1742412644511,-959.7,0.00029878,2]
[356407801,1742412644520,-500.0,0.00029878,2]
[356407802,1742412644531,-500.0,0.00029878,2]
[356407803,1742412644540,-787.69,0.00029878,2]
[356407805,1742412644549,-500.0,0.00029878,2]
[356407806,1742412644559,-500.0,0.00029878,2]
[356407808,1742412644570,-500.0,0.00029878,2]
[356407809,1742412644580,-500.0,0.00029878,2]
[356407810,1742412644589,-500.0,0.00029878,2]
[356407812,1742412644599,-516.72,0.00029878,2]
[356407813,1742412644609,-500.0,0.00029878,2]
[356407814,1742412644619,-787.93,0.00029878,2]
[356407816,1742412644628,-500.0,0.00029878,2]
[356407817,1742412644638,-500.0,0.00029878,2]
[356407819,1742412644649,-500.0,0.00029878,2]
[356407820,1742412644659,-500.0,0.00029878,2]
[356407821,1742412644669,-500.0,0.00029878,2]
[356407823,1742412644679,-500.0,0.00029878,2]
[356407824,1742412644689,-963.37,0.00029878,2]
[356407825,1742412644699,-500.0,0.00029878,2]
[356407827,1742412644709,-500.0,0.00029878,2]
[356407828,1742412644719,-500.0,0.00029878,2]
[356407829,1742412644729,-500.0,0.00029878,2]
[356407831,1742412644739,-500.0,0.00029878,2]
[356407832,1742412644749,-500.0,0.00029878,2]
[356407833,1742412644762,-500.0,0.00029878,2]
[356407835,1742412644772,-1177.8,0.00029878,2]
[356407836,1742412644781,-500.0,0.00029878,2]
[356407837,1742412644791,-500.0,0.00029878,2]
[356407839,1742412644802,-570.44,0.00029878,2]
[356407840,1742412644812,-500.0,0.00029878,2]
[356407842,1742412644822,-511.31993398,0.00029878,2]
[356407843,1742412644832,-1522.66,0.00029878,2]
[356407844,1742412644842,-500.0,0.00029878,2]
[356407846,1742412644852,-697.12,0.00029878,2]
[356407847,1742412644863,-500.0,0.00029878,2]
[356407849,1742412644875,-500.0,0.00029878,2]
[356407850,1742412644885,-848.81,0.00029878,2]
[356407851,1742412644895,-500.0,0.00029878,2]
[356407853,1742412644904,-632.23,0.00029878,2]
[356407854,1742412644914,-818.56,0.00029878,2]
[356407855,1742412644924,-531.76293992,0.00029878,2]
[356407857,1742412644933,-563.32,0.00029878,2]
[356407858,1742412644943,-500.0,0.00029878,2]
[356407860,1742412644953,-879.87,0.00029878,2]
[356407861,1742412644963,-517.29157407,0.00029878,2]
[356407862,1742412644973,-500.0,0.00029878,2]
[356407864,1742412644983,-843.98,0.00029878,2]
[356407865,1742412644992,-749.59,0.00029878,2]
[356407867,1742412645003,-500.0,0.00029878,2]
[356407868,1742412645012,-500.0,0.00029878,2]
[356407869,1742412645023,-500.0,0.00029878,2]
[356407871,1742412645032,-500.0,0.00029878,2]
[356407872,1742412645043,-575.43,0.00029878,2]
[356407873,1742412645054,-511.77647941,0.00029878,2]
[356407875,1742412645065,-500.0,0.00029878,2]
[356407876,1742412645075,-500.0,0.00029878,2]
[356407878,1742412645085,-581.02218171,0.00029878,2]
[356407879,1742412645095,-1042.94,0.00029878,2]
[356407880,1742412645105,-500.0,0.00029878,2]
[356407881,1742412645114,-500.0,0.00029878,2]
[356407882,1742412645124,-722.25,0.00029878,2]
[356407883,1742412645133,-500.0,0.00029878,2]
[356407884,1742412645143,-500.0,0.00029878,2]
[356407885,1742412645153,-500.0,0.00029878,2]
[356407886,1742412645162,-500.0,0.00029878,2]
[356407887,1742412645172,-545.98190104,0.00029878,2]
[356407888,1742412645182,-843.03,0.00029878,2]
[356407889,1742412645191,-500.0,0.00029878,2]
[356407890,1742412645200,-500.0,0.00029878,2]
[356407891,1742412645210,-500.0,0.00029878,2]
[356407892,1742412645220,-500.0,0.00029878,2]
[356407893,1742412645229,-380.5374734,0.00029878,2]
[356407894,1742412645239,-500.0,0.00029878,2]
[356407896,1742412645248,-500.0,0.00029878,2]
[356407897,1742412645261,-500.0,0.00029878,2]
[356407899,1742412645277,-510.85,0.00029878,2]
[356407900,1742412645287,-500.0,0.00029878,2]
[356407901,1742412645297,-500.0,0.00029878,2]
[356407903,1742412645307,-760.38,0.00029878,2]
[356407904,1742412645316,-500.0,0.00029878,2]
[356407905,1742412645327,-500.0,0.00029878,2]
[356407907,1742412645337,-500.0,0.00029878,2]
[356407908,1742412645347,-500.0,0.00029878,2]
[356407909,1742412645357,-613.87,0.00029878,2]
[356407911,1742412645366,-529.42349214,0.00029878,2]
[356407912,1742412645376,-500.0,0.00029878,2]
[356407914,1742412645386,-500.0,0.00029878,2]
[356407915,1742412645396,-500.0,0.00029878,2]
[356407916,1742412645406,-500.0,0.00029878,2]
[356407918,1742412645416,-500.0,0.00029878,2]
[356407919,1742412645426,-791.97,0.00029878,2]
[356407920,1742412645435,-549.15705969,0.00029878,2]
[356407922,1742412645445,-500.0,0.00029878,2]
[356407923,1742412645455,-504.24,0.00029878,2]
[356407926,1742412645465,-547.45,0.00029878,2]
[356407927,1742412645474,-289.78370934,0.00029878,2]
[356407928,1742412645484,-500.0,0.00029878,2]
[356407930,1742412645499,-739.85,0.00029878,2]
[356407932,1742412645514,-500.0,0.00029878,2]
[356407934,1742412645526,-500.0,0.00029878,2]
[356407935,1742412645536,-643.02,0.00029878,2]
[356407936,1742412645546,-500.0,0.00029878,2]
[356407938,1742412645556,-500.0,0.00029878,2]
[356407939,1742412645566,-763.37,0.00029878,2]
[356407940,1742412645577,-500.0,0.00029878,2]
[356407942,1742412645587,-500.0,0.00029878,2]
[356407943,1742412645596,-500.0,0.00029878,2]
[356407945,1742412645605,-500.0,0.00029878,2]
[356407946,1742412645615,-509.18009634,0.00029878,2]
[356407947,1742412645625,-638.88702432,0.00029878,2]
[356407949,1742412645635,-500.0,0.00029878,2]
[356407950,1742412645644,-500.0,0.00029878,2]
[356407951,1742412645654,-1215.8,0.00029878,2]
[356407953,1742412645664,-500.0,0.00029878,2]
[356407954,1742412645675,-500.0,0.00029878,2]
[356407955,1742412645684,-500.0,0.00029878,2]
[356407957,1742412645694,-271.62827922,0.00029878,2]
[356407958,1742412645704,-500.0,0.00029878,2]
[356407960,1742412645714,-692.78,0.00029878,2]
[356407961,1742412645724,-557.23,0.00029878,2]
[356407962,1742412645735,-987.13,0.00029878,2]
[356407964,1742412645745,-507.92764199,0.00029878,2]
[356407965,1742412645757,-1084.37,0.00029878,2]
[356407967,1742412645767,-575.44063901,0.00029878,2]
[356407968,1742412645777,-1005.31,0.00029878,2]
[356407969,1742412645787,-514.97407029,0.00029878,2]
[356407971,1742412645797,-1280.9,0.00029878,2]
[356407972,1742412645807,-509.2201177,0.00029878,2]
[356407973,1742412645817,-500.0,0.00029878,2]
[356407975,1742412645828,-500.0,0.00029878,2]
[356407976,1742412645838,-500.0,0.00029878,2]
[356407978,1742412645848,-500.0,0.00029878,2]
[356407979,1742412645861,-970.5,0.00029878,2]
[356407981,1742412645873,-500.0,0.00029878,2]
[356407982,1742412645883,-500.0,0.00029878,2]
[356407983,1742412645894,-500.0,0.00029878,2]
[356407985,1742412645903,-511.4936184,0.00029878,2]
[356407986,1742412645913,-1140.8,0.00029878,2]
[356407987,1742412645922,-500.0,0.00029878,2]
[356407989,1742412645932,-615.45,0.00029878,2]
[356407990,1742412645942,-312.61024961,0.00029878,2]
[356407992,1742412645953,-500.0,0.00029878,2]
[356407993,1742412645963,-1226.92,0.00029878,2]
[356407994,1742412645974,-639.44,0.00029878,2]
[356407996,1742412645985,-1113.48,0.00029878,2]
[356407997,1742412645995,-1000.0,0.00029878,2]
[356407999,1742412646007,-813.87,0.00029878,2]
[356408000,1742412646017,-805.18,0.00029878,2]
[356408001,1742412646028,-500.0,0.00029878,2]
[356408003,1742412646038,-500.0,0.00029878,2]
[356408004,1742412646048,-726.08,0.00029878,2]
[356408005,1742412646058,-500.0,0.00029878,2]
[356408007,1742412646068,-317.63413897,0.00029878,2]
[356408008,1742412646079,-500.0,0.00029878,2]
[356408010,1742412646090,-500.0,0.00029878,2]
[356408011,1742412646101,-715.36,0.00029878,2]
[356408012,1742412646110,-500.0,0.00029878,2]
[356408014,1742412646120,-500.0,0.00029878,2]
[356408015,1742412646129,-500.0,0.00029878,2]
[356408017,1742412646139,-802.05,0.00029878,2]
[356408018,1742412646149,-759.19,0.00029878,2]
[356408019,1742412646159,-500.0,0.00029878,2]
[356408021,1742412646169,-633.33,0.00029878,2]
[356408022,1742412646179,-526.97723393,0.00029878,2]
[356408023,1742412646189,-500.0,0.00029878,2]
[356408025,1742412646199,-555.04,0.00029878,2]
[356408026,1742412646209,-519.25944364,0.00029878,2]
[356408028,1742412646219,-1357.16,0.00029878,2]
[356408029,1742412646230,-612.9,0.00029878,2]
[356408030,1742412646240,-500.0,0.00029878,2]
[356408032,1742412646250,-1745.02,0.00029878,2]
[356408033,1742412646263,-500.0,0.00029878,2]
[356408034,1742412646273,-515.99485836,0.00029878,2]
[356408036,1742412646285,-974.68,0.00029878,2]
[356408037,1742412646295,-525.63,0.00029878,2]
[356408038,1742412646306,-500.0,0.00029878,2]
[356408040,1742412646316,-500.0,0.00029878,2]
[356408041,1742412646326,-511.2285233,0.00029878,2]
[356408042,1742412646336,-605.22,0.00029878,2]
[356408044,1742412646347,-500.0,0.00029878,2]
[356408045,1742412646358,-500.0,0.00029878,2]
[356408046,1742412646367,-500.0,0.00029878,2]
[356408048,1742412646378,-843.06,0.00029878,2]
[356408049,1742412646388,-856.71,0.00029878,2]
[356408051,1742412646398,-500.0,0.00029878,2]
[356408052,1742412646408,-500.0,0.00029878,2]
[356408053,1742412646418,-500.0,0.00029878,2]
[356408055,1742412646428,-699.34,0.00029878,2]
[356408056,1742412646438,-1776.18,0.00029878,2]
[356408057,1742412646448,-936.0,0.00029878,2]
[356408059,1742412646459,-500.0,0.00029878,2]
[356408060,1742412646469,-801.53,0.00029878,2]
[356408062,1742412646479,-500.0,0.00029878,2]
[356408063,1742412646490,-1126.08,0.00029878,2]
[356408064,1742412646505,-555.05,0.00029878,2]
[356408066,1742412646515,-500.0,0.00029878,2]
[356408067,1742412646526,-500.0,0.00029878,2]
[356408069,1742412646535,-500.0,0.00029878,2]
[356408070,1742412646546,-5031.74,0.00029878,2]
[356408071,1742412646556,-1419.38,0.00029878,2]
[356408073,1742412646567,-528.49,0.00029878,2]
[356408074,1742412646577,-500.0,0.00029878,2]
[356408076,1742412646588,-514.75324245,0.00029878,2]
[356408077,1742412646598,-1083.94,0.00029878,2]
[356408078,1742412646608,-500.0,0.00029878,2]
[356408080,1742412646618,-500.0,0.00029878,2]
[356408081,1742412646628,-769.86,0.00029878,2]
[356408083,1742412646638,-500.0,0.00029878,2]
[356408084,1742412646648,-1736.14,0.00029878,2]
[356408085,1742412646659,-906.08,0.00029878,2]
[356408087,1742412646670,-1468.03,0.00029878,2]
[356408088,1742412646680,-500.0,0.00029878,2]
[356408089,1742412646691,-1115.3,0.00029878,2]
[356408091,1742412646701,-1000.0,0.00029878,2]
[356408092,1742412646712,-756.15,0.00029878,2]
[356408094,1742412646722,-568.83,0.00029878,2]
[356408095,1742412646733,-617.88567095,0.00029878,2]
[356408096,1742412646746,-500.0,0.00029878,2]
[356408098,1742412646762,-989.22,0.00029878,2]
[356408099,1742412646773,-741.9,0.00029878,2]
[356408101,1742412646785,-1015.07,0.00029878,2]
[356408102,1742412646797,-599.29,0.00029878,2]
[356408103,1742412646807,-1371.58,0.00029878,2]
[356408105,1742412646819,-532.54,0.00029878,2]
[356408106,1742412646829,-667.92,0.00029878,2]
[356408107,1742412646840,-681.88,0.00029878,2]
[356408109,1742412646850,-875.14,0.00029878,2]
[356408110,1742412646859,-1318.75,0.00029878,2]
[356408112,1742412646869,-500.0,0.00029878,2]
[356408113,1742412646880,-500.0,0.00029878,2]
[356408114,1742412646891,-785.07,0.00029878,2]
[356408116,1742412646901,-467.35300182,0.00029878,2]
[356408117,1742412646911,-969.7,0.00029878,2]
[356408118,1742412646920,-500.0,0.00029878,2]
[356408120,1742412646930,-500.0,0.00029878,2]
[356408121,1742412646940,-500.0,0.00029878,2]
[356408123,1742412646950,-1139.42,0.00029878,2]
[356408124,1742412646959,-500.0,0.00029878,2]
[356408125,1742412646969,-1534.45,0.00029878,2]
[356408127,1742412646979,-500.0,0.00029878,2]
[356408128,1742412646988,-500.0,0.00029878,2]
[356408129,1742412646998,-1029.09,0.00029878,2]
[356408131,1742412647012,-500.0,0.00029878,2]
[356408132,1742412647021,-516.05,0.00029878,2]
[356408133,1742412647031,-500.0,0.00029878,2]
[356408135,1742412647040,-500.0,0.00029878,2]
[356408136,1742412647050,-500.0,0.00029878,2]
[356408138,1742412647060,-500.0,0.00029878,2]
[356408139,1742412647070,-500.0,0.00029878,2]
[356408140,1742412647081,-500.0,0.00029878,2]
[356408142,1742412647090,-500.0,0.00029878,2]
[356408143,1742412647100,-500.0,0.00029878,2]
[356408144,1742412647110,-500.0,0.00029878,2]
[356408146,1742412647121,-720.26,0.00029878,2]
[356408147,1742412647132,-815.02,0.00029878,2]
[356408149,1742412647142,-500.0,0.00029878,2]
[356408150,1742412647152,-500.0,0.00029878,2]
[356408151,1742412647162,-536.64,0.00029878,2]
[356408153,1742412647175,-647.09,0.00029878,2]
[356408161,1742412647386,-500.0,0.00029878,2]
[356408163,1742412647402,-981.66,0.00029878,2]
[356408164,1742412647412,-545.41,0.00029878,2]
[356408166,1742412647422,-500.0,0.00029878,2]
[356408167,1742412647432,-500.0,0.00029878,2]
[356408169,1742412647441,-500.0,0.00029878,2]
[356408170,1742412647453,-569.04,0.00029878,2]
[356408171,1742412647462,-500.0,0.00029878,2]
[356408173,1742412647472,-500.0,0.00029878,2]
[356408174,1742412647482,-500.0,0.00029878,2]
[356408176,1742412647495,-1363.48,0.00029878,2]
[356408177,1742412647509,-500.0,0.00029878,2]
[356408178,1742412647519,-500.0,0.00029878,2]
[356408180,1742412647530,-500.0,0.00029878,2]
[356408181,1742412647539,-500.0,0.00029878,2]
[356408182,1742412647549,-631.5,0.00029878,2]
[356408184,1742412647559,-500.0,0.00029878,2]
[356408185,1742412647570,-1517.64,0.00029878,2]
[356408186,1742412647580,-500.0,0.00029878,2]
[356408188,1742412647590,-500.0,0.00029878,2]
[356408189,1742412647600,-500.0,0.00029878,2]
[356408191,1742412647610,-500.0,0.00029878,2]
[356408192,1742412647620,-630.61,0.00029878,2]
[356408193,1742412647630,-500.0,0.00029878,2]
[356408195,1742412647640,-1021.0,0.00029878,2]
[356408196,1742412647650,-688.92,0.00029878,2]
[356408197,1742412647660,-1133.51,0.00029878,2]
[356408199,1742412647669,-1061.87,0.00029878,2]
[356408200,1742412647678,-545.1633159,0.00029878,2]
[356408201,1742412647688,-633.77,0.00029878,2]
[356408203,1742412647698,-500.0,0.00029878,2]
[356408204,1742412647707,-1713.24,0.00029878,2]
[356408205,1742412647717,-844.35,0.00029878,2]
[356408206,1742412647726,-387.17427653,0.00029878,2]
[356408207,1742412647735,-876.81,0.00029878,2]
[356408208,1742412647744,-500.0,0.00029878,2]
[356408209,1742412647755,-500.0,0.00029878,2]
[356408210,1742412647764,-1034.05,0.00029878,2]
[356408211,1742412647773,-1134.29,0.00029878,2]
[356408212,1742412647782,-1195.24,0.00029878,2]
[356408213,1742412647791,-508.99,0.00029878,2]
[356408214,1742412647800,-979.68,0.00029878,2]
[356408215,1742412647809,-500.0,0.00029878,2]
[356408216,1742412647819,-817.4,0.00029878,2]
[356408217,1742412647828,-514.07,0.00029878,2]
[356408218,1742412647838,-500.0,0.00029878,2]
[356408219,1742412647847,-499.99600001,0.00029878,2]
[356408221,1742412647858,-500.0,0.00029878,2]
[356408222,1742412647868,-647.41053536,0.00029878,2]
[356408223,1742412647878,-500.0,0.00029878,2]
[356408225,1742412647887,-1693.55,0.00029878,2]
[356408226,1742412647897,-699.64,0.00029878,2]
[356408227,1742412647906,-673.76,0.00029878,2]
[356408229,1742412647916,-500.0,0.00029878,2]
[356408230,1742412647925,-848.77,0.00029878,2]
[356408231,1742412647935,-889.88,0.00029878,2]
[356408233,1742412647945,-500.0,0.00029878,2]